bitfinex-derivatives/quotes_ETHF0:USTF0_20250507
["timestamp","ask_amount","ask_price","bid_price","bid_amount"]
[1746577755954,1.08936,1836.1,1835.6,4.32511]
[1746577756245,2.81156,1836.2,1836.0,1.08933]
[1746577756550,1.08931,1836.1,1835.9,1.08942]
[1746577756751,1.08931,1836.1,1835.7,3.2078]
[1746577756752,3.2078,1836.3,1835.7,3.2078]
[1746577757050,1.08926,1836.2,1836.1,1.08931]
[1746577757350,1.08926,1836.2,1836.1,1.0893]
[1746577757551,10.41402,1836.3,1836.1,1.0893]
[1746577757750,10.41402,1836.3,1836.2,1.5945]
[1746577757950,1.0893,1836.2,1836.0,1.08937]
[1746577758261,1.08931,1836.1,1835.9,2.68389]
[1746577758547,1.08937,1836.0,1835.8,1.08945]
[1746577758749,2.82797,1836.0,1835.8,1.08945]
[1746577759149,1.7386,1836.0,1835.9,1.08943]
[1746577759444,2.82797,1836.0,1835.8,1.5945]
[1746577759642,2.82797,1836.0,1835.8,2.68395]
[1746577759844,9.3248,1836.3,1835.9,3.2078]
[1746577760152,2.71046,1836.2,1836.0,1.08934]
[1746577760445,2.71046,1836.2,1836.0,2.78634]
[1746577760639,2.71046,1836.2,1836.0,1.697]
[1746577760851,2.71046,1836.2,1836.0,2.78632]
[1746577761153,1.6212,1836.2,1836.1,1.08931]
[1746577761452,2.61788,1836.7,1836.5,1.08903]
[1746577761649,1.0889,1836.9,1836.4,2.72285]
[1746577761947,1.6212,1836.9,1836.8,1.08889]
[1746577762148,9.3444,1837.2,1836.8,41.88889]
[1746577762346,1.6212,1837.1,1836.9,1.697]
[1746577762542,6.112,1837.2,1837.0,1.08876]
[1746577762738,1.6799,1837.4,1836.8,40.8]
[1746577762943,1.08859,1837.4,1837.0,1.6172]
[1746577763250,1.6799,1837.3,1837.0,2.70596]
[1746577763446,1.08868,1837.2,1837.0,2.70596]
[1746577763746,1.6799,1837.3,1837.1,3.2078]
[1746577763951,2.7685,1837.3,1837.2,1.6172]
[1746577764355,1.08869,1837.2,1837.0,1.08874]
[1746577764551,2.76862,1837.1,1837.0,1.6172]
[1746577765049,1.08884,1836.9,1836.8,40.8]
[1746577765954,1.6799,1837.1,1836.8,40.8]
[1746577766250,1.08856,1837.4,1837.2,1.08861]
[1746577766451,1.08856,1837.4,1837.3,1.6213]
[1746577766846,2.74076,1837.4,1837.3,1.6213]
[1746577767247,1.6522,1837.4,1837.3,1.6213]
[1746577767455,1.6522,1837.4,1837.3,2.7099]
[1746577767751,1.6522,1837.4,1837.0,1.08875]
[1746577767953,1.6522,1837.4,1837.2,1.08866]
[1746577768151,2.74076,1837.4,1837.2,1.08866]
[1746577768452,2.74076,1837.4,1837.1,1.08869]
[1746577768453,1.08861,1837.3,1837.1,1.08869]
[1746577768654,2.79756,1837.2,1837.0,2.71004]
[1746577769247,1.7089,1837.2,1836.9,3.2078]
[1746577769447,2.79758,1837.2,1837.0,2.71255]
[1746577769849,1.08872,1837.1,1837.0,2.71255]
[1746577770057,1.08878,1837.0,1836.9,4.29661]
[1746577770255,1.08884,1836.9,1836.8,42.4238]
[1746577770457,2.79774,1836.9,1836.8,42.4238]
[1746577770652,2.79774,1836.9,1836.8,43.5127]
[1746577771054,2.79774,1836.9,1836.8,40.8]
[1746577772149,1.7089,1836.9,1836.6,2.71282]
[1746577772353,1.7089,1836.9,1836.8,1.0889]
[1746577772545,1.7089,1836.9,1836.5,9.3348]
[1746577772743,4.43106,1836.9,1836.5,3.2078]
[1746577772949,1.08902,1836.6,1836.5,3.2078]
[1746577773146,1.0892,1836.3,1836.1,7.50237]
[1746577773357,1.7515,1836.5,1836.1,4.926]
[1746577773557,1.08915,1836.4,1836.2,1.08921]
[1746577773752,4.47424,1836.5,1836.1,3.2078]
[1746577773953,1.08931,1836.1,1836.0,42.5182]
[1746577774153,1.08931,1836.1,1836.0,40.8]
[1746577774559,1.08943,1835.9,1835.8,4.926]
[1746577774853,1.08887,1836.9,1836.6,1.08898]
[1746577775155,1.7388,1836.8,1836.7,1.08896]
[1746577775357,1.7388,1836.8,1836.3,2.72294]
[1746577775358,1.7388,1836.8,1836.6,1.08896]
[1746577775659,1.7388,1836.8,1836.7,4.29676]
[1746577775860,6.094,1837.1,1836.5,3.2078]
[1746577776048,1.08882,1837.0,1836.8,1.08889]
[1746577776253,1.7388,1836.9,1836.8,1.08889]
[1746577776458,2.82764,1836.9,1836.8,1.08889]
[1746577776658,2.82764,1836.9,1836.7,1.08891]
[1746577776847,2.82764,1836.9,1836.6,1.6651]
[1746577777047,1.7388,1836.9,1836.8,1.0889]
[1746577777248,2.82764,1836.9,1836.8,1.0889]
[1746577777761,2.82768,1836.9,1836.6,1.6651]
[1746577777952,1.7388,1836.9,1836.7,1.08895]
[1746577778154,1.0889,1836.8,1836.7,1.08895]
[1746577778662,2.82767,1836.9,1836.7,1.08895]
[1746577778962,2.82767,1836.9,1836.6,1.6651]
[1746577779160,2.82764,1836.9,1836.8,3.2078]
[1746577779359,1.0889,1836.8,1836.7,1.08893]
[1746577779553,1.68,1836.8,1836.7,2.72643]
[1746577780563,2.7689,1836.8,1836.7,2.72643]
[1746577780861,2.7689,1836.8,1836.4,7.61593]
[1746577780862,1.68,1836.8,1836.4,4.29691]
[1746577781050,1.08905,1836.6,1836.4,4.29689]
[1746577781253,1.635,1836.5,1836.4,4.29689]
[1746577781762,2.72408,1836.5,1836.4,4.29689]
[1746577781958,1.635,1836.5,1836.3,2.83066]
[1746577782159,1.08914,1836.4,1836.3,2.83066]
[1746577782462,2.72414,1836.5,1836.3,2.83066]
[1746577782665,2.72414,1836.5,1836.4,1.08914]
[1746577782958,7.17499,1836.7,1836.3,1.7415]
[1746577783163,8.80999,1836.7,1836.3,7.6723]
[1746577783464,7.17389,1836.9,1836.7,1.08892]
[1746577783658,1.0889,1836.8,1836.7,1.08892]
[1746577783860,1.0889,1836.8,1836.6,1.08897]
[1746577783861,2.8375,1836.8,1836.6,1.08897]
[1746577784162,2.8375,1836.8,1836.6,1.08898]
[1746577784456,1.7486,1836.8,1836.4,3.2903]
[1746577784664,1.08904,1836.6,1836.4,1.7415]
[1746577784963,1.7486,1836.5,1836.4,2.8306]
[1746577785160,1.08895,1836.8,1836.6,1.089]
[1746577785359,1.7486,1836.8,1836.7,1.08896]
[1746577786166,2.8375,1836.8,1836.7,1.08896]
[1746577786466,1.7486,1836.8,1836.7,1.08896]
[1746577787564,2.8375,1836.8,1836.7,1.08896]
[1746577787763,2.8375,1836.8,1836.6,1.5986]
[1746577788164,2.8375,1836.8,1836.7,1.08896]
[1746577789069,1.08896,1836.7,1836.6,1.5986]
[1746577789262,2.83276,1836.7,1836.6,1.5986]
[1746577789868,1.7438,1836.7,1836.6,2.68762]
[1746577790269,2.83276,1836.7,1836.6,2.68762]
[1746577791470,1.7438,1836.7,1836.6,2.68762]
[1746577791772,1.08888,1836.9,1836.8,1.08887]
[1746577792468,3.2078,1837.7,1837.0,2.72196]
[1746577792769,3.2078,1837.7,1837.4,1.0885]
[1746577792770,1.0885,1837.5,1837.4,1.0885]
[1746577792968,1.08847,1837.6,1837.4,41.8885]
[1746577793167,2.69267,1837.6,1837.4,41.8885]
[1746577793471,2.69267,1837.6,1837.5,1.6923]
[1746577793670,1.6042,1837.6,1837.5,2.78078]
[1746577793967,2.69263,1837.6,1837.5,2.78078]
[1746577794167,1.6042,1837.6,1837.5,2.78078]
[1746577794567,2.69263,1837.6,1837.5,1.6923]
[1746577795377,2.72122,1837.5,1837.1,1.6366]
[1746577795670,1.08863,1837.3,1837.1,1.08868]
[1746577795969,1.6042,1837.4,1837.3,1.0886]
[1746577796172,1.0886,1837.3,1837.2,40.8]
[1746577796769,2.7745,1837.3,1837.2,40.8]
[1746577797167,1.6859,1837.3,1837.2,41.88866]
[1746577797370,9.2768,1837.6,1837.2,40.8]
[1746577797567,1.08854,1837.4,1837.3,1.703]
[1746577797876,2.77442,1837.5,1837.3,2.79158]
[1746577798375,1.08854,1837.4,1837.3,2.79158]
[1746577798673,2.77444,1837.4,1837.3,2.79158]
[1746577798974,1.0884,1837.7,1837.5,1.08845]
[1746577799166,1.7483,1837.8,1837.7,1.08837]
[1746577799361,6.46767632,1837.9,1837.7,1.08837]
[1746577799574,6.46767632,1837.9,1837.8,1.7564]
[1746577799873,8.21597632,1837.9,1837.8,1.7564]
[1746577800369,5.37940632,1837.9,1837.8,2.84471]
[1746577800575,5.37940632,1837.9,1837.8,7.84471]
[1746577800775,6.14713254,1838.2,1838.1,1.08813]
[1746577800969,10.64677052,1838.4,1838.3,1.08801]
[1746577801168,10.64677052,1838.4,1838.3,4.29581]
[1746577801370,6.50946909,1838.7,1838.3,44.0078]
[1746577801571,1.08789,1838.6,1838.4,1.7564]
[1746577801770,1.08783,1838.6,1838.5,0.10878433]
[1746577802074,1.08795,1838.4,1838.3,40.8]
[1746577802267,1.08845,1837.6,1837.4,10.38831]
[1746577802474,1.08841,1837.7,1837.5,1.71064353]
[1746577802672,7.7094,1838.0,1837.5,2.79911353]
[1746577802974,1.08839,1837.7,1837.6,0.10883761]
[1746577803176,1.08839,1837.7,1837.6,40.90883761]
[1746577803571,3.2078,1838.3,1837.6,51.83760761]
[1746577803772,1.6353,1838.7,1838.0,5.92824]
[1746577803972,1.08774,1838.8,1838.6,1.08782]
[1746577804168,1.08763,1839.0,1838.7,1.08774]
[1746577804370,1.6504,1839.1,1838.8,4.8096]
[1746577804569,4.8431,1839.3,1838.9,1.6018]
[1746577804570,3.2078,1839.3,1838.9,1.6018]
[1746577804774,3.2078,1839.3,1838.6,8.81152]
[1746577804775,2.71889,1839.1,1838.6,3.2078]
[1746577804980,3.2078,1838.8,1838.7,0.1087725]
[1746577805279,1.08772,1838.8,1838.7,0.1087725]
[1746577805467,6.03432,1838.8,1838.7,0.1087725]
[1746577805672,2.82652,1838.8,1838.7,0.1087725]
[1746577805973,6.052,1838.8,1838.7,0.1087725]
[1746577806168,1.7388,1838.9,1838.7,1.8474725]
[1746577806679,3.2078,1838.9,1838.7,1.8474725]
[1746577806874,4.9466,1839.2,1838.7,1.8474725]
[1746577807074,1.08757,1839.1,1838.7,1.8474725]
[1746577807376,1.08769,1838.9,1838.7,1.8474725]
[1746577807779,4.9466,1839.0,1838.7,1.8474725]
[1746577807978,2.82642,1839.0,1838.7,1.8474725]
[1746577808179,3.2078,1839.2,1838.7,1.8474725]
[1746577808379,12.09419,1839.2,1838.9,1.08761]
[1746577808681,12.09419,1839.2,1839.0,40.8]
[1746577809182,1.08754,1839.1,1839.0,40.8]
[1746577809382,2.83844,1839.1,1839.0,40.8]
[1746577809681,1.7509,1839.1,1839.0,40.8]
[1746577809881,1.7509,1839.1,1839.0,41.8876]
[1746577810184,1.7509,1839.1,1839.0,42.527]
[1746577810477,7.13346,1839.3,1839.0,43.6146]
[1746577810682,1.08727,1839.6,1839.2,3.2078]
[1746577810984,1.08727,1839.6,1839.3,2.81438]
[1746577811280,1.08727,1839.6,1839.4,1.604]
[1746577811480,1.08728,1839.6,1839.4,1.604]
[1746577811779,1.0873,1839.5,1839.4,1.604]
[1746577812179,1.6901,1839.7,1839.4,4.8118]
[1746577812487,1.08713,1839.8,1839.6,1.08724]
[1746577812776,1.6901,1840.0,1839.7,4.8118]
[1746577812985,2.71798,1839.7,1839.2,12.9218]
[1746577813179,1.08742,1839.3,1839.2,3.2078]
[1746577813375,1.08741,1839.4,1839.2,3.2078]
[1746577813577,1.08741,1839.4,1839.2,5.89925]
[1746577813777,7.12734,1839.5,1839.2,5.89925]
[1746577813978,6.04,1839.5,1839.2,4.8118]
[1746577814178,10.33408,1839.6,1839.2,4.8118]
[1746577814482,6.039,1839.6,1839.4,1.08733]
[1746577814685,6.039,1839.6,1839.5,2.7547]
[1746577814982,1.08722,1839.7,1839.5,1.6674]
[1746577815181,1.08722,1839.7,1839.6,0.10871928]
[1746577815378,1.08714,1839.8,1839.6,1.19592928]
[1746577815685,1.08718,1839.7,1839.6,0.10871928]
[1746577815886,4.29498,1839.7,1839.6,0.10871928]
[1746577816087,9.29498,1839.7,1839.6,0.10871928]
[1746577816492,2.71831,1839.5,1839.0,40.8]
[1746577816785,4.29533,1839.2,1839.1,0.10874884]
[1746577816986,1.08748,1839.2,1839.1,0.10874884]
[1746577817185,1.08745,1839.3,1839.1,2.91506884]
[1746577817482,3.0805,1839.4,1839.1,1.82754884]
[1746577817684,1.08748,1839.2,1839.1,1.82754884]
[1746577817984,1.08745,1839.3,1839.1,1.82754884]
[1746577818190,3.0805,1839.4,1839.1,1.82754884]
[1746577818584,1.08748,1839.2,1839.1,0.10874884]
[1746577820681,4.29509,1839.6,1839.4,1.08735]
[1746577820993,4.29509,1839.6,1839.5,0.10872519]
[1746577821292,3.2078,1839.9,1839.5,0.10872519]
[1746577821585,3.2078,1839.9,1839.5,1.70752519]
[1746577821991,1.08724,1839.6,1839.5,0.10872519]
[1746577822589,7.11422,1839.7,1839.5,1.19602519]
[1746577822798,6.027,1839.7,1839.6,2.68604]
[1746577822987,3.2078,1839.8,1839.6,2.68604]
[1746577823192,4.29497,1839.8,1839.7,2.90929337]
[1746577823392,3.2078,1839.8,1839.7,2.90929337]
[1746577823591,4.29492,1839.8,1839.7,1.82211337]
[1746577823894,4.29492,1839.8,1839.7,2.90929337]
[1746577823895,3.2078,1839.8,1839.7,2.90929337]
[1746577824088,1.08711,1839.9,1839.8,1.08712]
[1746577824287,1.5542,1840.0,1839.7,1.82211337]
[1746577824484,6.024,1840.1,1839.7,1.82211337]
[1746577824687,1.08701,1840.0,1839.8,1.08708]
[1746577825090,1.08692,1840.2,1839.9,1.7134]
[1746577825296,1.08692,1840.2,1840.0,4.29477]
[1746577825297,1.0869,1840.2,1840.0,4.29477]
[1746577825489,1.0869,1840.2,1840.1,1.7134]
[1746577825689,4.41057,1840.3,1840.1,43.60034]
[1746577825894,1.08689,1840.2,1840.1,42.5134]
[1746577826088,2.73859,1840.2,1840.1,42.5134]
[1746577826694,1.08687,1840.3,1840.1,43.60035]
[1746577826891,2.83262,1840.4,1840.2,2.84199]
[1746577827092,1.08683,1840.3,1840.2,1.7551]
[1746577827494,1.08689,1840.2,1840.1,40.8]
[1746577827689,1.08706,1840.0,1839.8,1.7551]
[1746577827896,1.7458,1839.9,1839.8,2.84221]
[1746577828300,2.63473,1840.2,1839.8,50.7629]
[1746577828498,1.08706,1839.9,1839.8,40.8]
[1746577828703,6.01084,1840.2,1839.8,41.88712]
[1746577828903,1.08706,1840.0,1839.8,41.88712]
[1746577829197,1.7458,1839.9,1839.8,41.88712]
[1746577829392,7.10198,1840.1,1839.9,1.08706]
[1746577829595,1.737,1840.1,1840.0,1.08701]
[1746577829990,2.63473,1840.2,1840.1,1.08695]
[1746577830195,1.08693,1840.2,1840.0,1.08697]
[1746577830399,1.08693,1840.2,1840.1,1.7013]
[1746577830603,1.08693,1840.2,1840.0,1.08697]
[1746577830902,1.08695,1840.1,1839.9,1.7013]
[1746577831102,1.737,1840.0,1839.9,2.78833]
[1746577831306,2.82401,1840.0,1839.9,1.7013]
[1746577831501,1.737,1840.0,1839.9,2.78836]
[1746577832605,2.82401,1840.0,1839.9,1.7013]
[1746577832800,1.08706,1839.9,1839.8,40.8]
[1746577833008,2.72656,1839.9,1839.8,40.8]
[1746577833401,2.72656,1839.9,1839.8,41.88712]
[1746577833706,2.72656,1839.9,1839.8,40.8]
[1746577834100,2.72656,1839.9,1839.4,10.8546]
[1746577834101,1.08727,1839.6,1839.4,10.34314]
[1746577834308,2.7268,1839.5,1839.3,2.83517]
[1746577834506,1.6395,1839.5,1839.4,40.8]
[1746577834712,2.7268,1839.5,1839.4,40.8]
[1746577835208,1.08744,1839.3,1839.2,1.08748]
[1746577835504,1.6395,1839.5,1839.0,4.8049]
[1746577835710,1.08742,1839.4,1839.2,1.08746]
[1746577835897,1.6719,1839.3,1839.1,1.78888498]
[1746577836099,1.6719,1839.3,1839.0,4.8049]
[1746577836100,1.08754,1839.1,1839.0,4.8049]
[1746577836301,1.08777,1838.7,1838.6,1.6533]
[1746577836500,3.3773,1839.0,1838.6,44.0078]
[1746577836702,3.2078,1839.9,1838.9,3.2078]
[1746577836905,4.49863,1839.8,1839.4,4.29511]
[1746577837097,3.4115,1839.8,1839.2,2.76188]
[1746577837303,1.6719,1839.7,1839.3,2.74071]
[1746577837503,1.08727,1839.6,1839.4,1.6533]
[1746577837806,1.6719,1839.7,1839.4,1.6533]
[1746577838006,1.0873,1839.5,1839.4,1.6533]
[1746577838602,1.6719,1839.7,1839.0,9.2148]
[1746577838603,6.002,1839.6,1839.0,3.2078]
[1746577838808,1.08736,1839.5,1839.2,1.08743]
[1746577839112,1.08736,1839.4,1839.3,1.7297]
[1746577839315,1.08736,1839.5,1839.3,1.7297]
[1746577839605,1.08736,1839.4,1839.3,1.7297]
[1746577839803,2.71828,1839.5,1839.1,6.007]
[1746577840004,12.6213,1839.8,1839.3,1.0874]
[1746577840311,1.08729,1839.6,1839.4,2.81706]
[1746577840510,1.08729,1839.6,1839.4,1.7297]
[1746577840711,1.08729,1839.6,1839.4,2.81703]
[1746577841004,1.08717,1839.8,1839.6,1.08724]
[1746577841208,1.08717,1839.8,1839.7,1.7297]
[1746577842807,1.7464,1839.9,1839.7,4.9375]
[1746577843105,1.7464,1839.9,1839.7,1.08717]
[1746577843304,1.7464,1839.9,1839.8,1.6629]
[1746577843504,2.83347,1839.9,1839.8,42.4629]
[1746577844611,3.2078,1840.6,1839.9,1.08706]
[1746577844809,4.29449,1840.6,1840.3,1.08681]
[1746577845013,4.29449,1840.6,1840.2,3.2078]
[1746577845014,2.71911,1840.5,1840.4,1.7009]
[1746577845203,1.6324,1840.5,1840.1,1.08691]
[1746577845406,2.71914,1840.5,1840.3,1.08681]
[1746577845916,2.79931,1840.7,1840.5,1.08669]
[1746577846115,2.71906,1840.6,1840.4,4.29452]
[1746577847111,2.71906,1840.6,1840.5,1.08671]
[1746577847316,1.6324,1840.6,1840.4,1.08675]
[1746577847616,2.7191,1840.6,1840.4,1.08675]
[1746577847816,2.7191,1840.6,1840.3,2.5159]
[1746577847817,1.08677,1840.4,1840.3,0.815]
[1746577848909,1.0869,1840.2,1840.0,3.2078]
[1746577849115,2.79406,1840.3,1840.0,4.8482]
[1746577849315,1.7072,1840.3,1840.1,1.08691]
[1746577849516,1.7072,1840.3,1840.0,5.93519]
[1746577849723,1.08693,1840.2,1840.0,5.93519]
[1746577849921,1.08693,1840.2,1840.1,1.08695]
[1746577850814,1.08701,1840.0,1839.9,7.09404]
[1746577851017,1.08706,1839.9,1839.8,40.8]
[1746577851321,2.76796,1839.9,1839.8,40.8]
[1746577852417,1.6809,1839.9,1839.8,41.88712]
[1746577852719,1.08706,1839.9,1839.8,41.88711]
[1746577852920,8.75194,1840.0,1839.9,1.08706]
[1746577853123,2.76794,1840.0,1839.9,1.6341]
[1746577855028,2.76794,1840.0,1839.8,41.88707]
[1746577855029,1.08706,1839.9,1839.8,40.8]
[1746577855228,2.79156,1839.9,1839.8,40.8]
[1746577855820,1.7045,1839.9,1839.8,41.88712]
[1746577856027,1.08702,1840.0,1839.8,41.88712]
[1746577856221,2.79152,1840.0,1839.8,1.08712]
[1746577856424,3.2078,1839.9,1839.6,1.08721]
[1746577856726,1.08728,1839.6,1839.5,40.8]
[1746577857035,1.08739,1839.4,1839.2,3.2078]
[1746577857220,1.08739,1839.4,1839.2,6.03414]
[1746577857422,1.08742,1839.3,1839.2,6.03414]
[1746577857923,1.08742,1839.3,1839.2,46.83418]
[1746577858124,1.08736,1839.4,1839.3,1.08741]
[1746577858624,1.6058,1839.5,1839.2,45.7467]
[1746577858625,1.08742,1839.3,1839.2,45.7467]
[1746577859027,1.08742,1839.3,1839.2,40.8]
[1746577859721,2.84292,1839.3,1839.2,40.8]
[1746577860027,1.08732,1839.5,1839.2,40.8]
[1746577860228,1.08732,1839.5,1839.4,1.08735]
[1746577861426,2.84277,1839.6,1839.5,1.0873]
[1746577861624,1.08715,1839.8,1839.7,1.08715]
[1746577861830,1.08712,1839.8,1839.7,1.08715]
[1746577862032,1.08712,1839.9,1839.5,2.71822]
[1746577862326,1.08718,1839.7,1839.6,2.75364]
[1746577862518,2.84266,1839.8,1839.7,1.08718]
[1746577862722,1.0871,1839.9,1839.8,1.08712]
[1746577863223,1.08712,1839.8,1839.7,2.81385]
[1746577863424,1.08712,1839.8,1839.7,1.7267]
[1746577863623,1.0871,1839.9,1839.7,2.81388]
[1746577863820,1.08712,1839.8,1839.7,1.7267]
[1746577864123,1.08717,1839.8,1839.4,4.4743]
[1746577864328,1.7016,1839.7,1839.6,1.08724]
[1746577864623,1.08707,1839.9,1839.5,7.6527]
[1746577864824,10.41854,1840.0,1839.9,1.08706]
[1746577865229,1.08706,1839.9,1839.8,2.81377]
[1746577865526,10.41855,1840.0,1839.9,1.08706]
[1746577865928,1.08706,1839.9,1839.8,2.81379]
[1746577866124,1.08724,1839.6,1839.5,3.2078]
[1746577866325,1.0872,1839.7,1839.6,1.0872]
[1746577867032,1.08724,1839.6,1839.5,1.0873]
[1746577867231,1.0872,1839.7,1839.6,1.0872]
[1746577867430,1.7788,1839.7,1839.6,1.0872]
[1746577867630,1.7788,1839.7,1839.5,1.08726]
[1746577867834,1.08732,1839.5,1839.4,1.08734]
[1746577868123,5.961,1839.5,1839.2,40.8]
[1746577868332,5.961,1839.5,1839.4,1.08736]
[1746577868333,7.04832,1839.5,1839.4,1.08736]
[1746577868529,5.961,1839.5,1839.4,1.08736]
[1746577868828,1.7788,1839.6,1839.5,1.0873]
[1746577869032,1.6573,1839.8,1839.7,1.08718]
[1746577869334,8.85049,1839.9,1839.8,1.08712]
[1746577869529,1.08717,1839.8,1839.6,2.76452]
[1746577869729,2.89057,1839.8,1839.7,1.6773]
[1746577870033,1.08718,1839.7,1839.5,1.08726]
[1746577870333,1.08724,1839.6,1839.5,2.76456]
[1746577870527,1.08724,1839.6,1839.5,1.6773]
[1746577870735,1.0873,1839.5,1839.4,1.08732]
[1746577870942,1.08736,1839.4,1839.3,4.8851]
[1746577871631,1.08736,1839.4,1839.3,1.6773]
[1746577871839,1.08748,1839.2,1839.1,0.2687]
[1746577872235,6.09268,1839.3,1839.2,1.08748]
[1746577872539,1.6543,1839.3,1839.2,1.08748]
[1746577872830,2.74172,1839.3,1839.2,2.85458]
[1746577873030,1.6543,1839.3,1839.2,2.85458]
[1746577873734,9.1608,1839.6,1839.2,1.7671]
[1746577874031,1.0874,1839.4,1839.3,1.0874]
[1746577874234,1.0874,1839.4,1839.3,1.08741]
[1746577874532,1.6543,1839.5,1839.2,1.7671]
[1746577874533,2.74162,1839.5,1839.4,1.08736]
[1746577874739,1.6543,1839.5,1839.4,1.08736]
[1746577874943,2.7416,1839.5,1839.4,1.08736]
[1746577875244,1.08742,1839.3,1839.2,1.7671]
[1746577875541,4.37258,1839.5,1839.3,1.08741]
[1746577875542,1.08741,1839.4,1839.3,1.08741]
[1746577875736,2.79281,1839.4,1839.3,1.08741]
[1746577876039,9.1598,1839.6,1839.5,1.0873]
[1746577876230,1.08739,1839.4,1839.3,1.08741]
[1746577876431,1.08734,1839.5,1839.2,1.7671]
[1746577876640,1.08734,1839.5,1839.4,1.08735]
[1746577877029,1.08741,1839.4,1839.3,1.08738]
[1746577877237,1.08735,1839.5,1839.4,1.08735]
[1746577877437,1.08727,1839.6,1839.5,1.08727]
[1746577877746,15.92654624,1840.0,1839.5,5.92606]
[1746577877747,3.2078,1840.0,1839.5,5.92606]
[1746577878041,5.43296718,1840.2,1839.8,2.71782]
[1746577878340,5.43296718,1840.2,1840.1,4.29475]
[1746577878727,5.43296718,1840.2,1840.1,45.09475]
[1746577881045,6.51985718,1840.2,1840.1,45.09475]
[1746577881245,6.51985718,1840.2,1840.1,40.8]
[1746577881547,1.08689,1840.2,1840.1,40.8]
[1746577882941,1.08713,1839.8,1839.7,1.08715]
[1746577883148,8.65623,1840.2,1839.6,17.90542111]
[1746577883443,1.08704,1840.0,1839.8,1.08709]
[1746577883644,1.08691,1840.2,1839.8,2.71782]
[1746577883844,9.4072,1840.3,1839.9,2.83974]
[1746577884040,1.08703,1840.0,1839.8,1.08708]
[1746577884448,1.08703,1840.0,1839.7,42.483]
[1746577884638,1.08698,1840.1,1839.9,1.08704]
[1746577884947,1.08701,1840.0,1839.8,1.08708]
[1746577885147,1.08705,1840.0,1839.8,1.08711]
[1746577885449,12.615,1840.3,1839.7,42.483]
[1746577885645,15.33209,1840.3,1839.7,42.483]
[1746577885946,1.08711,1839.9,1839.7,43.57017]
[1746577886146,5.92519,1840.1,1839.7,43.57017]
[1746577886346,1.08712,1839.8,1839.7,42.483]
[1746577886543,1.0871,1839.9,1839.7,42.483]
[1746577886744,1.0871,1839.9,1839.7,43.57015]
[1746577886940,3.2078,1839.9,1839.4,3.2078]
[1746577887135,11.85849,1839.9,1839.4,1.7563]
[1746577887341,1.0872,1839.7,1839.4,1.7563]
[1746577887641,4.66304,1839.8,1839.6,1.0872]
[1746577888039,4.66307,1839.8,1839.6,2.8435]
[1746577888247,1.08718,1839.7,1839.6,2.8435]
[1746577888448,4.66306,1839.8,1839.7,1.08718]
[1746577888645,5.933,1839.9,1839.7,1.08718]
[1746577888646,7.02008,1839.9,1839.7,2.84348]
[1746577888847,1.08712,1839.8,1839.7,1.7563]
[1746577889046,1.08724,1839.6,1839.5,40.8]
[1746577889243,1.08724,1839.6,1839.5,41.88724]
[1746577889440,2.71773,1839.9,1839.5,40.8]
[1746577889646,1.08724,1839.6,1839.5,40.8]
[1746577890153,1.08736,1839.4,1839.2,3.2078]
[1746577890344,12.04172,1839.6,1839.2,4.29524]
[1746577890648,12.04172,1839.6,1838.9,48.04962111]
[1746577890649,1.0876,1839.0,1838.9,48.04962111]
[1746577890952,1.08749,1839.2,1838.9,48.04962111]
[1746577891245,1.0876,1839.0,1838.9,48.04962111]
[1746577891452,1.0876,1839.0,1838.9,7.24962111]
[1746577891749,1.0876,1839.0,1838.9,6.98092111]
[1746577892049,1.0876,1839.0,1838.9,47.78092111]
[1746577892250,1.0876,1839.0,1838.9,40.8]
[1746577892649,7.71858,1839.1,1838.9,41.88766]
[1746577892845,3.2078,1839.1,1838.9,43.66154]
[1746577893151,4.29538,1839.1,1838.9,43.66154]
[1746577893351,1.0876,1839.0,1838.9,43.66154]
[1746577893651,4.29538,1839.1,1838.9,43.66154]
[1746577893950,4.29538,1839.1,1839.0,1.0876]
[1746577894146,4.29538,1839.1,1839.0,1.7385]
[1746577894544,1.08753,1839.2,1839.0,1.7385]
[1746577894744,1.08754,1839.1,1839.0,1.7385]
[1746577894944,1.08751,1839.2,1839.0,1.7385]
[1746577895151,1.08754,1839.1,1839.0,1.7385]
[1746577895348,1.08751,1839.2,1839.0,1.7385]
[1746577895542,1.08754,1839.1,1839.0,1.7385]
[1746577896045,2.84822,1839.2,1839.0,1.7385]
[1746577896245,1.08754,1839.1,1839.0,1.7385]
[1746577896748,1.7607,1839.2,1838.8,3.4764]
[1746577896945,1.6681,1839.0,1838.8,3.4764]
[1746577897447,1.6681,1839.0,1838.8,41.0686]
[1746577897643,9.1258,1838.9,1838.8,0.2686]
[1746577897852,9.1258,1838.9,1838.3,6.98092111]
[1746577898052,3.2078,1838.7,1838.3,6.98092111]
[1746577898253,1.6681,1838.6,1838.4,40.8]
[1746577898556,1.6681,1838.6,1838.4,42.5625]
[1746577899257,1.6681,1838.6,1838.4,40.8]
[1746577899652,1.6681,1838.6,1838.4,42.6324]
[1746577899854,4.8759,1838.6,1838.4,40.8]
[1746577900751,5.914,1838.5,1838.3,6.98092111]
[1746577900958,1.8115,1838.4,1838.3,6.98092111]
[1746577901157,1.8115,1838.4,1838.3,47.78092111]
[1746577901359,1.8115,1838.4,1838.3,6.98092111]
[1746577901550,10.0193,1838.4,1838.3,6.98092111]